[Event "Slovakian-ch Youth 2022"]
[Site "Lubovna"]
[Date "2022.05.25"]
[Round "6.23"]
[White "Sustek, Adam"]
[Black "Klimek Martin"]
[Result "1-0"]
[ECO "B01"]
[WhiteElo "1636"]
[BlackElo "1418"]
[Annotator "NA COMBH"]
[PlyCount "77"]
[EventDate "2022.05.22"]
[EventCountry "SVK"]
[SourceTitle "playchess.com"]
[Source "ChessBase"]
[SourceQuality "1"]
[TimeControl "40/5400+30:1800+30"]

1. e4 {[%emt 0:00:17]} d5 {[%emt 0:00:10]} 2. exd5 {[%emt 0:00:11]} Nf6 {[%emt 0:00:12]} 3. Bb5+ {[%emt 0:00:29]} Bd7 {[%emt 0:00:19]} 4. Bc4 {[%emt 0:00:18]} c6 {[%emt 0:01:54]} 5. dxc6 {[%emt 0:06:06]} Nxc6 {[%emt 0:00:57]} 6. Nf3 {[%emt 0:03:52]} Bg4 {[%emt 0:05:48]} 7. h3 {[%emt 0:02:12]} Bh5 {[%emt 0:03:17]} 8. O-O {[%emt 0:08:11]} e5 {[%emt 0:06:29]} 9. Re1 {[%emt 0:06:13]} Bd6 {[%emt 0:08:16]} 10. Bb5 {[%emt 0:10:48]} O-O {[%emt 0:07:01]} 11. Bxc6 {[%emt 0:00:22]} bxc6 {[%emt 0:00:12]} 12. Nc3 {[%emt 0:03:10]} Re8 {[%emt 0:02:20]} 13. d3 {[%emt 0:01:51]} e4 {[%emt 0:02:00]} 14. dxe4 {[%emt 0:07:25]} Nxe4 {[%emt 0:03:45]} 15. Nxe4 {[%emt 0:00:56]} Rxe4 {[%emt 0:00:35]} 16. Be3 {[%emt 0:02:04]} Qc7 {[%emt 0:06:42]} 17. g4 {[%emt 0:09:43]} Bg6 {[%emt 0:06:26]} 18. Nh4 {[%emt 0:01:49]} Rae8 {[%emt 0:03:44]} 19. Nxg6 {[%emt 0:03:18]} hxg6 {[%emt 0:00:39]} 20. Qd3 {[%emt 0:05:23]} Qe7 {[%emt 0:08:15]} 21. Bd2 {[%emt 0:03:46]} Qe5 {[%emt 0:05:31]} 22. f4 {[%emt 0:12:34]} Bc5+ {[%emt 0:03:10]} 23. Kh1 {[%emt 0:07:13]} Qd4 {[%emt 0:00:58]} 24. Qxd4 {[%emt 0:01:31]} Rxe1+ {[%emt 0:00:28]} 25. Rxe1 {[%emt 0:00:35]} Rxe1+ {[%emt 0:00:09]} 26. Bxe1 {[%emt 0:00:06]} Bxd4 {[%emt 0:00:10]} 27. b3 {[%emt 0:00:57]} Be3 {[%emt 0:00:36]} 28. Bg3 {[%emt 0:00:04]} Kf8 {[%emt 0:01:13]} 29. Kg2 {[%emt 0:00:19]} Ke7 {[%emt 0:00:58]} 30. Kf3 {[%emt 0:00:26]} Bd2 {[%emt 0:00:28]} 31. Bf2 {[%emt 0:01:59]} a5 {[%emt 0:00:32]} 32. Be3 {[%emt 0:00:45]} Bb4 {[%emt 0:00:30]} 33. Ke4 {[%emt 0:00:32]} f6 {[%emt 0:00:59]} 34. Bd4 {[%emt 0:01:25]} Kd7 {[%emt 0:01:04]} 35. c3 {[%emt 0:00:34]} Bf8 {[%emt 0:00:39]} 36. Bb6 {[%emt 0:00:17]} Kd6 {[%emt 0:01:15]} 37. Bxa5 {[%emt 0:00:24]} c5 {[%emt 0:00:27]} 38. b4 {[%emt 0:00:29]} cxb4 {[%emt 0:00:14]} 39. Bxb4+ {[%emt 0:00:13]} 1-0

[Event "Slovakian-ch Youth 2022"]
[Site "Lubovna"]
[Date "2022.05.25"]
[Round "6.24"]
[White "Havalda, Samuel"]
[Black "Papp, Gabor"]
[Result "1/2-1/2"]
[ECO "C14"]
[WhiteElo "1465"]
[BlackElo "2564"]
[Annotator "TA"]
[PlyCount "115"]
[EventDate "2022.05.22"]
[EventCountry "SVK"]
[SourceTitle "playchess.com"]
[Source "ChessBase"]
[SourceQuality "1"]
[TimeControl "40/5400+30:1800+30"]

{[%evp 14,115,20,14,47,48,69,61,80,49,68,58,76,68,88,48,46,16,6,12,15,10,15,0,15,0,68,57,59,57,61,54,58,60,56,42,59,59,265,66,72,70,79,54,159,62,70,70,70,62,70,39,39,41,57,43,40,8,8,8,4,4,8,0,0,0,0,0,0,0,0,0,0,-90,0,0,0,0,0,0,0,0,0,-8,0,0,0,0,0,-8,-8,-8,-8,-8,-8,-8,-8,-8,-8,-8,-8,-8,-8,-8]} 1. e4 {[%emt 0:02:36]} e6 {[%emt 0:01:20]} 2. d4 {[%emt 0:00:24]} d5 {[%emt 0:00:01]} 3. Nc3 {[%emt 0:00:28]} Nf6 {[%emt 0:00:02]} 4. Bg5 {[%emt 0:00:23]} Be7 {[%emt 0:00:01]} 5. e5 {[%emt 0:00:13]} Nfd7 {[%emt 0:00:02]} 6. Bxe7 {[%emt 0:00:29]} Qxe7 {[%emt 0:00:02]} 7. f4 {[%emt 0:00:40]} a6 $1 {[%emt 0:01:42] 7...a6 scores better than 7...0-0.} 8. Nf3 {[%emt 0:01:06]} Nc6 {[%emt 0:08:53] C14: French: Classical System: 4 Bg5 Be7 main line.} 9. Qd2 {[%emt 0:10:28]} b5 {[%emt 0:09:29]} 10. a3 {[%emt 0:19:58] [#]} Nb6 $146 {[%emt 0:03:29] White is slightly better.} ({Predecessor:} 10... Bb7 11. Bd3 f6 12. O-O b4 13. axb4 Nxb4 14. exf6 Qxf6 15. f5 e5 16. dxe5 Nxe5 17. Nxe5 {1-0 (23) Adams,M-Gordon,S CServe email 1994}) 11. Be2 {[%emt 0:02:14]} Bd7 {[%emt 0:02:25]} 12. O-O {[%emt 0:18:08]} Na5 {[%emt 0:13:02]} 13. b3 {[%emt 0:04:47]} c5 {[%emt 0:03:01]} 14. Kh1 {[%emt 0:01:57]} c4 {[%emt 0:04:11]} 15. b4 {[%emt 0:02:14]} Nc6 {[%emt 0:00:44]} 16. Rfb1 {[%emt 0:00:30]} O-O {[%emt 0:07:31]} 17. Nd1 {[%emt 0:04:00]} Rfb8 {[%emt 0:00:09]} 18. Nf2 {[%emt 0:01:03]} f6 {[%emt 0:05:43]} 19. Ng4 {[%emt 0:04:27]} fxe5 {[%emt 0:02:40]} (19... f5 $11 20. Ne3 a5) 20. Ngxe5 {[%emt 0:00:23]} Nxe5 {[%emt 0:02:43]} 21. Nxe5 {[%emt 0:00:56]} Rf8 {[%emt 0:02:08]} 22. Rf1 {[%emt 0:01:44]} Nc8 {[%emt 0:02:01]} 23. c3 {[%emt 0:02:27]} Nd6 {[%emt 0:00:08]} 24. Bf3 {[%emt 0:00:45]} Rf6 {[%emt 0:01:56]} 25. Rae1 {[%emt 0:03:25]} Nf7 $2 {[%emt 0:03:59] [#]} (25... Rff8 $14) 26. g3 $2 {[%emt 0:04:22]} (26. Ng4 $1 $18) 26... Nxe5 $14 {[%emt 0:16:11]} 27. Rxe5 {[%emt 0:10:27] Strongly threatening Bxd5.} ({Reject} 27. fxe5 Rf7 $11) 27... Qd6 {[%emt 0:00:30]} 28. Rfe1 {[%emt 0:00:30][%cal Bf1e1,Be1e5,Be5f5][%mdl 32]} Rf5 {[%emt 0:00:30] [#]} ({Black should try} 28... a5 $14) 29. Bg4 {[%emt 0:00:30]} (29. Rxf5 $1 $16 exf5 30. Re5) 29... Rxe5 {[%emt 0:00:30]} 30. Rxe5 {[%emt 0:00:30]} a5 {[%emt 0:00:30]} 31. Qe2 {[%emt 0:00:30][%cal Rg4e6]} Kf7 {[%emt 0:00:30]} 32. f5 {[%emt 0:00:30] White is more active.} exf5 {[%emt 0:00:30]} 33. Bxf5 {[%emt 0:00:30]} Bxf5 {[%emt 0:00:30]} 34. Rxf5+ {[%emt 0:00:30][%mdl 4096] Endgame KQR-KQR} Kg8 {[%emt 0:00:30]} 35. Qe5 {[%emt 0:00:30]} Qxe5 {[%emt 0:00:30]} (35... Rd8 {feels hotter.} 36. bxa5 h6 37. Kg2 Qxa3 38. Qc7 Qd6) 36. Rxe5 {[%emt 0:00:30]} axb4 {[%emt 0:00:30]} 37. axb4 $11 {[%emt 0:00:30] KR-KR} Ra3 {[%emt 0:00:30]} 38. Re3 {[%emt 0:00:30]} Ra2 {[%emt 0:00:30]} 39. h3 {[%emt 0:00:30]} Kf7 {[%emt 0:00:30]} 40. Kg1 {[%emt 0:00:30]} Rc2 {[%emt 0:00:30]} 41. Kf1 {[%emt 0:30:30]} h6 {[%emt 0:30:30]} 42. h4 {[%emt 0:03:06]} Kf6 {[%emt 0:03:02]} 43. h5 {[%emt 0:00:00]} (43. Rf3+ $11 {remains equal.} Ke6 44. Kg1) 43... Kf7 {[%emt 0:00:00]} ({Black should play} 43... Kg5 $17 44. Re5+ Kg4) 44. Ke1 {[%emt 0:00:00] The position is equal.} Rg2 {[%emt 0:00:00]} 45. Re5 {[%emt 0:00:00]} Rxg3 {[%emt 0:00:00] aiming for ...Rg5.} 46. Rxd5 {[%emt 0:00:00]} Rxc3 {[%emt 0:00:00]} 47. Rxb5 {[%emt 0:00:00]} Rd3 {[%emt 0:00:00]} 48. d5 {[%emt 0:00:00]} c3 {[%emt 0:00:00]} 49. Rc5 {[%emt 0:00:00]} c2 {[%emt 0:00:00]} 50. Rxc2 {[%emt 0:00:00]} Rxd5 {[%emt 0:00:00]} 51. Rc5 {[%emt 0:00:00]} Rxc5 {[%emt 0:00:00]} 52. bxc5 {[%emt 0:00:00] Intending Kd2 and mate. KPP-KPP} Ke6 {[%emt 0:00:00]} 53. Kd2 {[%emt 0:00:00] White threatens Kc3 and mate.} Kd5 {[%emt 0:00:00]} 54. Kd3 {[%emt 0:00:00]} Kxc5 {[%emt 0:00:00]} 55. Ke4 {[%emt 0:00:00]} Kd6 {[%emt 0:00:00] ( -> ...Ke6)} (55... Kc4 $5) 56. Kf5 {[%emt 0:00:00]} Ke7 {[%emt 0:00:00]} 57. Ke5 {[%emt 0:00:00]} Kf8 {[%emt 0:01:11]} (57... Kf7 $5) 58. Kf4 $1 {[%emt 0:00:00] Weighted Error Value: White=0.23 (precise) /Black=0.20 (precise)} 1/2-1/2

[Event "Slovakian-ch Youth 2022"]
[Site "Lubovna"]
[Date "2022.05.25"]
[Round "6.25"]
[White "Volanek, Maros"]
[Black "Vojtas Marek"]
[Result "0-1"]
[ECO "A25"]
[WhiteElo "1458"]
[BlackElo "1000"]
[Annotator "NA COMBH"]
[PlyCount "30"]
[EventDate "2022.05.22"]
[EventCountry "SVK"]
[SourceTitle "playchess.com"]
[Source "ChessBase"]
[SourceQuality "1"]
[TimeControl "40/5400+30:1800+30"]

1. c4 {[%emt 0:00:05]} e5 {[%emt 0:01:12]} 2. Nc3 {[%emt 0:00:06]} Nf6 {[%emt 0:00:27]} 3. g3 {[%emt 0:00:28]} Bc5 {[%emt 0:00:36]} 4. Bg2 {[%emt 0:01:35]} Nc6 {[%emt 0:01:29]} 5. d3 {[%emt 0:01:17]} h6 {[%emt 0:01:29]} 6. Nf3 {[%emt 0:01:33]} d5 {[%emt 0:01:42]} 7. cxd5 {[%emt 0:02:23]} Nxd5 {[%emt 0:00:11]} 8. Nxe5 {[%emt 0:04:00]} Nxc3 {[%emt 0:01:17]} 9. Bxc6+ {[%emt 0:00:52]} bxc6 {[%emt 0:00:52]} 10. bxc3 {[%emt 0:00:26]} Qf6 {[%emt 0:01:49]} 11. d4 {[%emt 0:00:08]} O-O {[%emt 0:01:08]} 12. Nf3 {[%emt 0:04:28]} Bd6 {[%emt 0:02:21]} 13. h3 {[%emt 0:05:23]} Re8 {[%emt 0:01:58]} 14. c4 {[%emt 0:10:36]} Qxf3 {[%emt 0:01:17]} 15. O-O {[%emt 0:02:54]} Rxe2 {[%emt 0:01:27]} 0-1

[Event "Slovakian-ch Youth 2022"]
[Site "Lubovna"]
[Date "2022.05.25"]
[Round "6.26"]
[White "Filo, David"]
[Black "Ondrejcak Gregor"]
[Result "1-0"]
[ECO "D38"]
[WhiteElo "1653"]
[BlackElo "1000"]
[Annotator "NA COMBH"]
[PlyCount "73"]
[EventDate "2022.05.22"]
[EventCountry "SVK"]
[SourceTitle "playchess.com"]
[Source "ChessBase"]
[SourceQuality "1"]
[TimeControl "40/5400+30:1800+30"]

1. d4 {[%emt 0:00:10]} d5 {[%emt 0:00:07]} 2. c4 {[%emt 0:00:21]} e6 {[%emt 0:00:19]} 3. Nc3 {[%emt 0:00:21]} Bb4 {[%emt 0:00:09]} 4. Nf3 {[%emt 0:00:29]} Nf6 {[%emt 0:00:55]} 5. Bg5 {[%emt 0:00:50]} O-O {[%emt 0:00:22]} 6. e3 {[%emt 0:01:24]} Nbd7 {[%emt 0:01:58]} 7. a3 {[%emt 0:04:22]} Bxc3+ {[%emt 0:00:32]} 8. bxc3 {[%emt 0:00:09]} h6 {[%emt 0:01:14]} 9. Bxf6 {[%emt 0:00:37]} Qxf6 {[%emt 0:01:57]} 10. cxd5 {[%emt 0:02:08]} exd5 {[%emt 0:00:47]} 11. Bd3 {[%emt 0:00:15]} Re8 {[%emt 0:01:16]} 12. O-O {[%emt 0:00:46]} a6 {[%emt 0:06:24]} 13. Qc2 {[%emt 0:04:08]} g6 {[%emt 0:11:03]} 14. Rab1 {[%emt 0:09:32]} c6 {[%emt 0:07:56]} 15. Rb2 {[%emt 0:21:05]} b5 {[%emt 0:16:45]} 16. Nd2 {[%emt 0:19:36]} Nb6 {[%emt 0:08:58]} 17. e4 {[%emt 0:09:23]} Be6 {[%emt 0:13:27]} 18. e5 {[%emt 0:03:31]} Qe7 {[%emt 0:01:52]} 19. f4 {[%emt 0:01:51]} Nd7 {[%emt 0:08:06]} 20. f5 {[%emt 0:01:47]} Bxf5 {[%emt 0:03:47]} 21. Bxf5 {[%emt 0:00:12]} gxf5 {[%emt 0:00:07]} 22. Qxf5 {[%emt 0:00:24]} Nf8 {[%emt 0:01:31]} 23. Rf4 {[%emt 0:03:17]} Ng6 {[%emt 0:01:06]} 24. Rg4 {[%emt 0:00:34]} Ra7 {[%emt 0:02:30]} 25. h4 {[%emt 0:03:46]} Kf8 {[%emt 0:02:34]} 26. Rxg6 {[%emt 0:00:26]} Qxh4 {[%emt 0:00:47]} 27. Rg4 {[%emt 0:01:29]} Qe1+ {[%emt 0:00:55]} 28. Kh2 {[%emt 0:00:18]} Re6 {[%emt 0:01:20]} 29. Rf4 {[%emt 0:01:57]} Rae7 {[%emt 0:00:30]} 30. Qh7 {[%emt 0:00:54]} Ke8 {[%emt 0:00:38]} 31. Qg8+ {[%emt 0:00:10]} Kd7 {[%emt 0:00:15]} 32. Qa8 {[%emt 0:00:24]} Qe3 {[%emt 0:00:33]} 33. Qb7+ {[%emt 0:01:25]} Kd8 {[%emt 0:00:41]} 34. Qb8+ {[%emt 0:00:39]} Kd7 {[%emt 0:00:08]} 35. Rf3 {[%emt 0:00:44]} Qg5 {[%emt 0:01:37]} 36. g3 {[%emt 0:03:02]} h5 {[%emt 0:00:31]} 37. Nb3 {[%emt 0:00:43]} 1-0

[Event "Slovakian-ch Youth 2022"]
[Site "Lubovna"]
[Date "2022.05.25"]
[Round "6.27"]
[White "Durovka, Marek"]
[Black "Hudak, Michal"]
[Result "1-0"]
[ECO "A80"]
[WhiteElo "1827"]
[BlackElo "1169"]
[Annotator "NA COMBH"]
[PlyCount "29"]
[EventDate "2022.05.22"]
[EventCountry "SVK"]
[SourceTitle "playchess.com"]
[Source "ChessBase"]
[SourceQuality "1"]
[TimeControl "40/5400+30:1800+30"]

1. d4 {[%emt 0:00:12]} f5 {[%emt 0:00:35]} 2. Nf3 {[%emt 0:01:15]} Nf6 {[%emt 0:00:23]} 3. e3 {[%emt 0:00:37]} e6 {[%emt 0:00:18]} 4. Bd3 {[%emt 0:01:28]} Nc6 {[%emt 0:00:25]} 5. c4 {[%emt 0:01:40]} Be7 {[%emt 0:01:56]} 6. Nc3 {[%emt 0:00:36]} Bb4 {[%emt 0:00:27]} 7. O-O {[%emt 0:01:10]} Bxc3 {[%emt 0:00:12]} 8. bxc3 {[%emt 0:00:07]} d6 {[%emt 0:00:21]} 9. Ba3 {[%emt 0:06:01]} O-O {[%emt 0:03:56]} 10. Rb1 {[%emt 0:09:39]} b6 {[%emt 0:02:15]} 11. Qe2 {[%emt 0:04:56]} Ba6 {[%emt 0:05:36]} 12. d5 {[%emt 0:14:22]} exd5 {[%emt 0:05:30]} 13. cxd5 {[%emt 0:00:33]} Nxd5 {[%emt 0:00:44]} 14. Bxa6 {[%emt 0:00:23]} Nxc3 {[%emt 0:00:02]} 15. Qc4+ {[%emt 0:00:12]} 1-0

[Event "Slovakian-ch Youth 2022"]
[Site "Lubovna"]
[Date "2022.05.25"]
[Round "6.28"]
[White "Janoska Peter"]
[Black "Meszaros, Casey Ryan"]
[Result "0-1"]
[ECO "C45"]
[WhiteElo "1272"]
[BlackElo "1757"]
[Annotator "NA COMBH"]
[PlyCount "110"]
[EventDate "2022.05.22"]
[EventCountry "SVK"]
[SourceTitle "playchess.com"]
[Source "ChessBase"]
[SourceQuality "1"]
[TimeControl "40/5400+30:1800+30"]

1. e4 {[%emt 0:00:11]} e5 {[%emt 0:01:19]} 2. Nf3 {[%emt 0:00:31]} Nc6 {[%emt 0:00:32]} 3. d4 {[%emt 0:00:36]} exd4 {[%emt 0:01:25]} 4. Nxd4 {[%emt 0:00:16]} Bc5 {[%emt 0:00:30]} 5. Nb3 {[%emt 0:00:20]} Bb6 {[%emt 0:02:04]} 6. Qe2 {[%emt 0:00:31]} d6 {[%emt 0:08:44]} 7. Be3 {[%emt 0:00:24]} Nf6 {[%emt 0:02:18]} 8. f3 {[%emt 0:03:37]} Be6 {[%emt 0:03:25]} 9. Nc3 {[%emt 0:04:34]} Qe7 {[%emt 0:06:07]} 10. O-O-O {[%emt 0:01:10]} O-O-O {[%emt 0:12:39]} 11. Qf2 {[%emt 0:08:06]} Bxe3+ {[%emt 0:07:45]} 12. Qxe3 {[%emt 0:00:10]} Bxb3 {[%emt 0:01:16]} 13. axb3 {[%emt 0:00:13]} d5 {[%emt 0:02:39]} 14. Nb5 {[%emt 0:07:53]} Kb8 {[%emt 0:04:39]} 15. Bd3 {[%emt 0:07:14]} a6 {[%emt 0:06:59]} 16. Na3 {[%emt 0:01:20]} dxe4 {[%emt 0:02:37]} 17. Bxe4 {[%emt 0:02:35]} Nxe4 {[%emt 0:03:33]} 18. Qxe4 {[%emt 0:09:50]} Qxe4 {[%emt 0:04:23]} 19. fxe4 {[%emt 0:00:10]} Rxd1+ {[%emt 0:02:00]} 20. Rxd1 {[%emt 0:00:30]} Re8 {[%emt 0:00:46]} 21. Rd7 {[%emt 0:03:03]} Ne5 {[%emt 0:00:34]} 22. Rd1 {[%emt 0:02:32]} Kc8 {[%emt 0:02:04]} 23. Re1 {[%emt 0:02:25]} Ng4 {[%emt 0:01:57]} 24. h3 {[%emt 0:04:57]} Nf6 {[%emt 0:00:37]} 25. e5 {[%emt 0:04:36]} Nd7 {[%emt 0:00:28]} 26. Nc4 {[%emt 0:02:02]} f6 {[%emt 0:03:41]} 27. e6 {[%emt 0:04:40]} Nf8 {[%emt 0:00:21]} 28. e7 {[%emt 0:01:08]} Ng6 {[%emt 0:00:09]} 29. Kd2 {[%emt 0:02:15]} Kd7 {[%emt 0:01:32]} 30. Na5 {[%emt 0:01:37]} b6 {[%emt 0:00:19]} 31. Nc4 {[%emt 0:00:56]} Rxe7 {[%emt 0:01:22]} 32. Rf1 {[%emt 0:01:39]} Ne5 {[%emt 0:07:07]} 33. Rf4 {[%emt 0:02:46]} Nxc4+ {[%emt 0:02:30]} 34. bxc4 {[%emt 0:01:38]} c5 {[%emt 0:01:37]} 35. Rf3 {[%emt 0:01:15]} Re6 {[%emt 0:01:05]} 36. Rg3 {[%emt 0:03:33]} g5 {[%emt 0:00:36]} 37. Ra3 {[%emt 0:00:50]} a5 {[%emt 0:00:12]} 38. Rf3 {[%emt 0:00:57]} Ke7 {[%emt 0:00:49]} 39. Rf5 {[%emt 0:04:50]} Kf7 {[%emt 0:00:56]} 40. h4 {[%emt 0:02:44]} Kg6 {[%emt 0:00:38]} 41. Rf3 {[%emt 0:31:12]} h6 {[%emt 0:35:18]} 42. hxg5 {[%emt 0:02:41]} hxg5 {[%emt 0:00:18]} 43. Re3 {[%emt 0:03:39]} Rxe3 {[%emt 0:00:41]} 44. Kxe3 {[%emt 0:00:06]} Kf5 {[%emt 0:00:15]} 45. Kf3 {[%emt 0:00:40]} Ke5 {[%emt 0:00:32]} 46. Ke3 {[%emt 0:00:25]} f5 {[%emt 0:00:08]} 47. g3 {[%emt 0:01:01]} f4+ {[%emt 0:00:12]} 48. gxf4+ {[%emt 0:00:09]} gxf4+ {[%emt 0:00:02]} 49. Kf3 {[%emt 0:00:38]} Kf5 {[%emt 0:00:49]} 50. b3 {[%emt 0:00:40]} Ke5 {[%emt 0:00:11]} 51. c3 {[%emt 0:00:39]} b5 {[%emt 0:01:30]} 52. cxb5 {[%emt 0:01:45]} c4 {[%emt 0:00:09]} 53. bxc4 {[%emt 0:01:07]} a4 {[%emt 0:00:11]} 54. c5 {[%emt 0:01:11]} Kd5 {[%emt 0:00:37]} 55. c4+ {[%emt 0:00:00]} Kxc5 {[%emt 0:00:00]} 0-1

[Event "Slovakian-ch Youth 2022"]
[Site "Lubovna"]
[Date "2022.05.25"]
[Round "6.29"]
[White "Ropovik, Samuel"]
[Black "Dvorak, Alfred"]
[Result "1-0"]
[ECO "C42"]
[WhiteElo "1453"]
[BlackElo "1239"]
[Annotator "NA COMBH"]
[PlyCount "75"]
[EventDate "2022.05.22"]
[EventCountry "SVK"]
[SourceTitle "playchess.com"]
[Source "ChessBase"]
[SourceQuality "1"]
[TimeControl "40/5400+30:1800+30"]

1. e4 {[%emt 0:00:06]} e5 {[%emt 0:00:08]} 2. Nf3 {[%emt 0:00:10]} Nf6 {[%emt 0:00:18]} 3. Nc3 {[%emt 0:02:14]} Bc5 {[%emt 0:02:59]} 4. Nxe5 {[%emt 0:06:17]} Nc6 {[%emt 0:01:50]} 5. Nxc6 {[%emt 0:09:43]} dxc6 {[%emt 0:00:19]} 6. Be2 {[%emt 0:04:38]} Be6 {[%emt 0:05:06]} 7. d3 {[%emt 0:02:41]} Qd7 {[%emt 0:09:32]} 8. O-O {[%emt 0:02:51]} O-O-O {[%emt 0:02:49]} 9. Be3 {[%emt 0:09:17]} Bxe3 {[%emt 0:01:40]} 10. fxe3 {[%emt 0:00:10]} Bg4 {[%emt 0:04:12]} 11. Bxg4 {[%emt 0:09:08]} Nxg4 {[%emt 0:00:38]} 12. Qf3 {[%emt 0:02:31]} Rdf8 {[%emt 0:02:50]} 13. Rae1 {[%emt 0:14:03]} g6 {[%emt 0:09:48]} 14. Qf4 {[%emt 0:04:56]} h5 {[%emt 0:04:52]} 15. h3 {[%emt 0:01:10]} Nh6 {[%emt 0:02:19]} 16. Qf6 {[%emt 0:01:59]} Rfg8 {[%emt 0:04:56]} 17. Qd4 {[%emt 0:03:03]} Qxd4 {[%emt 0:08:17]} 18. exd4 {[%emt 0:00:02]} g5 {[%emt 0:00:30]} 19. d5 {[%emt 0:00:47]} c5 {[%emt 0:04:02]} 20. Na4 {[%emt 0:01:49]} b6 {[%emt 0:00:36]} 21. c4 {[%emt 0:00:25]} g4 {[%emt 0:00:53]} 22. h4 {[%emt 0:01:25]} g3 {[%emt 0:00:28]} 23. Rf3 {[%emt 0:01:10]} Rg4 {[%emt 0:00:43]} 24. Nc3 {[%emt 0:01:22]} Rhg8 {[%emt 0:09:00]} 25. Rf6 {[%emt 0:01:01]} R8g6 {[%emt 0:00:30]} 26. Rxg6 {[%emt 0:00:39]} Rxg6 {[%emt 0:00:11]} 27. e5 {[%emt 0:02:09]} Nf5 {[%emt 0:04:18]} 28. Rf1 {[%emt 0:03:40]} Nxh4 {[%emt 0:02:24]} 29. Rxf7 {[%emt 0:00:34]} Rg5 {[%emt 0:01:34]} 30. e6 {[%emt 0:01:54]} Re5 {[%emt 0:00:33]} 31. Rf8+ {[%emt 0:01:46]} Kb7 {[%emt 0:00:18]} 32. Ne4 {[%emt 0:01:41]} Ng6 {[%emt 0:01:15]} 33. Rf7 {[%emt 0:01:06]} a6 {[%emt 0:00:35]} 34. d6 {[%emt 0:04:43]} Rxe6 {[%emt 0:01:13]} 35. d7 {[%emt 0:01:55]} Ne5 {[%emt 0:01:29]} 36. d8=Q {[%emt 0:01:57]} Nxf7 {[%emt 0:00:14]} 37. Qd5+ {[%emt 0:00:22]} Rc6 {[%emt 0:00:21]} 38. Qxf7 {[%emt 0:00:11]} 1-0

[Event "Slovakian-ch Youth 2022"]
[Site "Lubovna"]
[Date "2022.05.25"]
[Round "6.30"]
[White "Bilik, Matej"]
[Black "Drabek Matej"]
[Result "1-0"]
[ECO "C50"]
[WhiteElo "1553"]
[BlackElo "1000"]
[Annotator "NA COMBH"]
[PlyCount "57"]
[EventDate "2022.05.22"]
[EventCountry "SVK"]
[SourceTitle "playchess.com"]
[Source "ChessBase"]
[SourceQuality "1"]
[TimeControl "40/5400+30:1800+30"]

1. e4 {[%emt 0:00:05]} e5 {[%emt 0:00:11]} 2. Nf3 {[%emt 0:00:11]} Nc6 {[%emt 0:00:15]} 3. Bc4 {[%emt 0:00:13]} Bc5 {[%emt 0:00:10]} 4. O-O {[%emt 0:00:10]} Nf6 {[%emt 0:00:12]} 5. d3 {[%emt 0:00:13]} h6 {[%emt 0:00:10]} 6. h3 {[%emt 0:01:34]} O-O {[%emt 0:00:19]} 7. c3 {[%emt 0:01:13]} Bb6 {[%emt 0:01:23]} 8. Re1 {[%emt 0:02:10]} d6 {[%emt 0:01:15]} 9. a4 {[%emt 0:03:21]} Qe8 {[%emt 0:02:54]} 10. b4 {[%emt 0:00:52]} a6 {[%emt 0:00:32]} 11. Nbd2 {[%emt 0:02:12]} Ba7 {[%emt 0:02:32]} 12. Bb2 {[%emt 0:04:22]} Be6 {[%emt 0:04:38]} 13. Qb3 {[%emt 0:07:58]} Nh5 {[%emt 0:04:13]} 14. d4 {[%emt 0:07:26]} Nd8 {[%emt 0:07:48]} 15. dxe5 {[%emt 0:06:48]} dxe5 {[%emt 0:01:48]} 16. Nf1 {[%emt 0:12:00]} Qe7 {[%emt 0:02:00]} 17. Ne3 {[%emt 0:02:02]} Nf4 {[%emt 0:04:54]} 18. Bxe6 {[%emt 0:03:09]} Ndxe6 {[%emt 0:00:56]} 19. Nd5 {[%emt 0:01:49]} Qd8 {[%emt 0:01:15]} 20. Rad1 {[%emt 0:01:48]} c6 {[%emt 0:02:09]} 21. Nxf4 {[%emt 0:00:18]} Qb6 {[%emt 0:01:04]} 22. Nd3 {[%emt 0:00:47]} Nf4 {[%emt 0:01:08]} 23. a5 {[%emt 0:00:55]} Qc7 {[%emt 0:01:31]} 24. Nxf4 {[%emt 0:03:41]} exf4 {[%emt 0:00:25]} 25. c4 {[%emt 0:01:19]} b6 {[%emt 0:00:32]} 26. Be5 {[%emt 0:00:46]} Qe7 {[%emt 0:00:48]} 27. Bd6 {[%emt 0:00:33]} Qf6 {[%emt 0:00:58]} 28. Bxf8 {[%emt 0:00:12]} Rxf8 {[%emt 0:00:10]} 29. e5 {[%emt 0:01:17]} 1-0

[Event "Slovakian-ch Youth 2022"]
[Site "Lubovna"]
[Date "2022.05.25"]
[Round "6.31"]
[White "Shykhnenko, Hryhorii"]
[Black "Dolnik, Michal"]
[Result "1-0"]
[ECO "B23"]
[WhiteElo "1284"]
[BlackElo "1548"]
[Annotator "NA COMBH"]
[PlyCount "82"]
[EventDate "2022.05.22"]
[EventCountry "SVK"]
[SourceTitle "playchess.com"]
[Source "ChessBase"]
[SourceQuality "1"]
[TimeControl "40/5400+30:1800+30"]

1. e4 {[%emt 0:00:04]} c5 {[%emt 0:00:08]} 2. Nc3 {[%emt 0:00:06]} d6 {[%emt 0:00:34]} 3. f4 {[%emt 0:00:11]} Nc6 {[%emt 0:00:26]} 4. Bc4 {[%emt 0:00:49]} g6 {[%emt 0:00:50]} 5. d3 {[%emt 0:01:17]} Bg7 {[%emt 0:00:13]} 6. Nf3 {[%emt 0:01:09]} Bg4 {[%emt 0:00:09]} 7. Bxf7+ {[%emt 0:00:23]} Kf8 {[%emt 0:00:24]} 8. Bxg8 {[%emt 0:01:44]} Rxg8 {[%emt 0:00:23]} 9. O-O {[%emt 0:00:56]} Nd4 {[%emt 0:02:16]} 10. Bd2 {[%emt 0:08:45]} Nxf3+ {[%emt 0:01:44]} 11. gxf3 {[%emt 0:01:02]} Bh3 {[%emt 0:00:06]} 12. Re1 {[%emt 0:03:36]} Be6 {[%emt 0:06:21]} 13. Qe2 {[%emt 0:09:33]} Bc8 {[%emt 0:05:13]} 14. e5 {[%emt 0:04:21]} d5 {[%emt 0:00:11]} 15. Nd1 {[%emt 0:04:04]} Bf5 {[%emt 0:02:46]} 16. e6 {[%emt 0:03:37]} Qe8 {[%emt 0:16:46]} 17. Nf2 {[%emt 0:03:44]} b6 {[%emt 0:04:06]} 18. Rab1 {[%emt 0:03:28]} Qa4 {[%emt 0:03:39]} 19. b3 {[%emt 0:17:41]} Qc6 {[%emt 0:01:39]} 20. Ng4 {[%emt 0:08:10]} Bxg4 {[%emt 0:00:44]} 21. fxg4 {[%emt 0:00:32]} Ke8 {[%emt 0:02:42]} 22. Kg2 {[%emt 0:00:52]} Rf8 {[%emt 0:00:00]} 23. Qf3 {[%emt 0:00:36]} Rd8 {[%emt 0:07:05]} 24. c4 {[%emt 0:01:56]} Bd4 {[%emt 0:01:07]} 25. Be3 {[%emt 0:00:58]} Bxe3 {[%emt 0:02:34]} 26. Rxe3 {[%emt 0:00:12]} g5 {[%emt 0:00:11]} 27. f5 {[%emt 0:00:33]} Rf6 {[%emt 0:00:50]} 28. Re5 {[%emt 0:00:43]} Rh6 {[%emt 0:01:05]} 29. Rxd5 {[%emt 0:01:34]} Rxd5 {[%emt 0:00:15]} 30. Qxd5 {[%emt 0:00:18]} Qxd5+ {[%emt 0:01:10]} 31. cxd5 {[%emt 0:00:07]} Kd8 {[%emt 0:00:05]} 32. d4 {[%emt 0:01:08]} cxd4 {[%emt 0:01:03]} 33. Rd1 {[%emt 0:00:08]} Kc7 {[%emt 0:00:05]} 34. Rxd4 {[%emt 0:00:36]} Kd6 {[%emt 0:00:07]} 35. Rd2 {[%emt 0:01:01]} Rh4 {[%emt 0:00:08]} 36. Kg3 {[%emt 0:00:14]} Rh6 {[%emt 0:00:15]} 37. Rd3 {[%emt 0:02:15]} Rf6 {[%emt 0:00:25]} 38. Kf3 {[%emt 0:00:49]} Rf8 {[%emt 0:00:12]} 39. Ke4 {[%emt 0:01:18]} Rc8 {[%emt 0:00:23]} 40. Rh3 {[%emt 0:04:07]} Rh8 {[%emt 0:00:24]} 41. Rc3 {[%emt 0:30:31]} Rc8 {[%emt 0:41:48]} 1-0